[Event "Slovakia Open 2022"]
[Site "Bratislava"]
[Date "2022.09.30"]
[Round "3.35"]
[White "Romanova, Ela"]
[Black "Matejka, Simon"]
[Result "0-1"]
[ECO "C27"]
[WhiteElo "1580"]
[BlackElo "1422"]
[Annotator "NA COMBH"]
[PlyCount "65"]
[EventDate "2022.09.30"]
[EventCountry "SVK"]
[SourceTitle "playchess.com"]
[Source "ChessBase"]
[SourceQuality "1"]
[TimeControl "2700+10"]

1. e4 {[%emt 0:03:28]} e5 {[%emt 0:00:24]} 2. Nc3 {[%emt 0:00:02]} Nc6 {[%emt 0:00:06]} 3. Bc4 {[%emt 0:00:03]} Nf6 {[%emt 0:00:12]} 4. d3 {[%emt 0:00:02]} Bc5 {[%emt 0:00:36]} 5. f4 {[%emt 0:00:08]} d6 {[%emt 0:00:13]} 6. h3 {[%emt 0:01:34]} Be6 {[%emt 0:00:49]} 7. Bxe6 {[%emt 0:01:12]} fxe6 {[%emt 0:00:06]} 8. fxe5 {[%emt 0:00:10]} dxe5 {[%emt 0:00:30]} 9. Nf3 {[%emt 0:01:16]} O-O {[%emt 0:01:31]} 10. Bg5 {[%emt 0:00:47]} h6 {[%emt 0:00:40]} 11. Bh4 {[%emt 0:00:22]} Qe8 {[%emt 0:01:22]} 12. Qd2 {[%emt 0:06:08]} Nh5 {[%emt 0:01:39]} 13. Bf2 {[%emt 0:09:52]} Bxf2+ {[%emt 0:00:56]} 14. Qxf2 {[%emt 0:00:02]} Nd4 {[%emt 0:00:19]} 15. O-O-O {[%emt 0:00:35]} Nf4 {[%emt 0:01:15]} 16. Qd2 {[%emt 0:06:58]} Nxg2 {[%emt 0:02:21]} 17. Nxe5 {[%emt 0:06:58]} Nf4 {[%emt 0:02:17]} 18. Rdf1 {[%emt 0:01:53]} Qh5 {[%emt 0:01:48]} 19. Rxf4 {[%emt 0:03:32]} Qxe5 {[%emt 0:00:25]} 20. Rg4 {[%emt 0:00:23]} Qh5 {[%emt 0:00:56]} 21. Rhg1 {[%emt 0:00:32]} Rf7 {[%emt 0:01:52]} 22. Qe3 {[%emt 0:00:36]} Rd8 {[%emt 0:00:42]} 23. e5 {[%emt 0:01:05]} Nf5 {[%emt 0:01:31]} 24. Qe2 {[%emt 0:00:58]} Qxh3 {[%emt 0:00:46]} 25. Kb1 {[%emt 0:00:18]} Kh8 {[%emt 0:00:37]} 26. Ne4 {[%emt 0:00:08]} Qh5 {[%emt 0:01:30]} 27. Qd2 {[%emt 0:00:26]} Nd4 {[%emt 0:01:29]} 28. Qe3 {[%emt 0:00:11]} Qxe5 {[%emt 0:01:10]} 29. Rh1 {[%emt 0:00:08]} Nf5 {[%emt 0:01:01]} 30. Qd2 {[%emt 0:00:08]} a6 {[%emt 0:00:35]} 31. Ng5 {[%emt 0:00:07]} Rf6 {[%emt 0:00:30]} 32. Re4 {[%emt 0:00:12]} Qd5 {[%emt 0:00:43]} 33. Ree1 {[%emt 0:00:26]} 0-1

[Event "Slovakia Open 2022"]
[Site "Bratislava"]
[Date "2022.09.30"]
[Round "3.36"]
[White "Dolnik, Michal"]
[Black "Nedoba, Jakub"]
[Result "1-0"]
[ECO "B13"]
[WhiteElo "1485"]
[BlackElo "1160"]
[Annotator "NA COMBH"]
[PlyCount "47"]
[EventDate "2022.09.30"]
[EventCountry "SVK"]
[SourceTitle "playchess.com"]
[Source "ChessBase"]
[SourceQuality "1"]
[TimeControl "2700+10"]

1. e4 {[%emt 0:00:03]} c6 {[%emt 0:00:01]} 2. Nf3 {[%emt 0:00:23]} d5 {[%emt 0:00:09]} 3. exd5 {[%emt 0:00:22]} cxd5 {[%emt 0:00:02]} 4. d4 {[%emt 0:00:02]} Bg4 {[%emt 0:00:05]} 5. Be2 {[%emt 0:00:04]} Nc6 {[%emt 0:00:03]} 6. Bf4 {[%emt 0:00:09]} e6 {[%emt 0:00:13]} 7. Nc3 {[%emt 0:00:47]} Nf6 {[%emt 0:00:47]} 8. h3 {[%emt 0:02:09]} Bxf3 {[%emt 0:04:22]} 9. Bxf3 {[%emt 0:00:05]} Bd6 {[%emt 0:00:17]} 10. Bxd6 {[%emt 0:01:03]} Qxd6 {[%emt 0:00:04]} 11. Qd2 {[%emt 0:01:23]} a6 {[%emt 0:00:06]} 12. O-O {[%emt 0:02:17]} b5 {[%emt 0:01:33]} 13. h4 {[%emt 0:02:45]} O-O {[%emt 0:02:49]} 14. Rad1 {[%emt 0:00:11]} Rfd8 {[%emt 0:00:10]} 15. g3 {[%emt 0:01:18]} Ne7 {[%emt 0:00:10]} 16. g4 {[%emt 0:00:10]} h6 {[%emt 0:02:24]} 17. g5 {[%emt 0:00:56]} hxg5 {[%emt 0:00:03]} 18. Qxg5 {[%emt 0:01:23]} Nd7 {[%emt 0:01:17]} 19. Kh1 {[%emt 0:00:21]} g6 {[%emt 0:00:11]} 20. Rg1 {[%emt 0:00:11]} Kg7 {[%emt 0:00:21]} 21. Rg3 {[%emt 0:01:31]} Rh8 {[%emt 0:00:33]} 22. h5 {[%emt 0:01:23]} Nf6 {[%emt 0:00:21]} 23. Rh3 {[%emt 0:00:15]} Rh7 {[%emt 0:01:19]} 24. h6+ {[%emt 0:00:10]} 1-0

[Event "Slovakia Open 2022"]
[Site "Bratislava"]
[Date "2022.09.30"]
[Round "3.37"]
[White "Rehacek, Jan"]
[Black "Certik Peter"]
[Result "1-0"]
[ECO "D00"]
[WhiteElo "1342"]
[BlackElo "1000"]
[Annotator "NA COMBH"]
[PlyCount "58"]
[EventDate "2022.09.30"]
[EventCountry "SVK"]
[SourceTitle "playchess.com"]
[Source "ChessBase"]
[SourceQuality "1"]
[TimeControl "2700+10"]

1. d4 {[%emt 0:00:06]} d5 {[%emt 0:00:04]} 2. Bf4 {[%emt 0:00:05]} Nf6 {[%emt 0:00:28]} 3. Nf3 {[%emt 0:00:04]} Nc6 {[%emt 0:00:46]} 4. Nc3 {[%emt 0:00:05]} e6 {[%emt 0:00:28]} 5. e3 {[%emt 0:00:36]} a6 {[%emt 0:00:35]} 6. a3 {[%emt 0:00:17]} Be7 {[%emt 0:01:21]} 7. Ne5 {[%emt 0:00:13]} Bd7 {[%emt 0:00:36]} 8. Bd3 {[%emt 0:00:15]} Bd6 {[%emt 0:00:36]} 9. O-O {[%emt 0:00:45]} h6 {[%emt 0:00:58]} 10. Qf3 {[%emt 0:00:50]} Qe7 {[%emt 0:00:39]} 11. Rfe1 {[%emt 0:01:40]} O-O-O {[%emt 0:01:05]} 12. Qe2 {[%emt 0:01:47]} Ne4 {[%emt 0:00:54]} 13. Bxa6 {[%emt 0:01:34]} Na7 {[%emt 0:01:51]} 14. Nxd7 {[%emt 0:03:00]} Rxd7 {[%emt 0:00:11]} 15. Nb5 {[%emt 0:04:07]} Nxb5 {[%emt 0:00:02]} 16. Bxb5 {[%emt 0:06:57]} c6 {[%emt 0:00:04]} 17. Bd3 {[%emt 0:01:13]} Ng5 {[%emt 0:00:02]} 18. a4 {[%emt 0:01:15]} f6 {[%emt 0:00:38]} 19. a5 {[%emt 0:00:17]} e5 {[%emt 0:00:01]} 20. dxe5 {[%emt 0:02:20]} fxe5 {[%emt 0:00:04]} 21. Bxg5 {[%emt 0:00:55]} hxg5 {[%emt 0:00:03]} 22. Bf5 {[%emt 0:00:46]} e4 {[%emt 0:02:48]} 23. Bxd7+ {[%emt 0:00:12]} Kxd7 {[%emt 0:00:01]} 24. a6 {[%emt 0:00:07]} Bxh2+ {[%emt 0:00:51]} 25. Kf1 {[%emt 0:02:50]} Bc7 {[%emt 0:00:10]} 26. Qg4+ {[%emt 0:00:10]} Kd8 {[%emt 0:00:02]} 27. axb7 {[%emt 0:01:00]} Rh1+ {[%emt 0:00:05]} 28. Ke2 {[%emt 0:00:01]} Rxe1+ {[%emt 0:00:10]} 29. Rxe1 {[%emt 0:00:37]} Bb8 {[%emt 0:00:25]} 1-0

[Event "Slovakia Open 2022"]
[Site "Bratislava"]
[Date "2022.09.30"]
[Round "3.38"]
[White "Hlavac, Tomas"]
[Black "Hryshko Herman"]
[Result "1-0"]
[ECO "B52"]
[WhiteElo "1554"]
[BlackElo "1000"]
[Annotator "NA RC COMBH"]
[PlyCount "103"]
[EventDate "2022.09.30"]
[EventCountry "SVK"]
[SourceTitle "playchess.com"]
[Source "ChessBase"]
[SourceQuality "1"]
[TimeControl "2700+10"]

1. e4 {[%emt 0:00:05]} c5 {[%emt 0:00:05]} 2. Nf3 {[%emt 0:00:03]} d6 {[%emt 0:00:05]} 3. Bb5+ {[%emt 0:00:07]} Bd7 {[%emt 0:00:06]} 4. Bxd7+ {[%emt 0:00:03]} Nxd7 {[%emt 0:00:04]} 5. O-O {[%emt 0:00:15]} Ngf6 {[%emt 0:00:03]} 6. Re1 {[%emt 0:00:07]} g6 {[%emt 0:00:09]} 7. c3 {[%emt 0:00:10]} Bg7 {[%emt 0:00:25]} 8. Qe2 {[%emt 0:00:17]} O-O {[%emt 0:00:14]} 9. d4 {[%emt 0:00:31]} cxd4 {[%emt 0:00:42]} 10. cxd4 {[%emt 0:00:07]} e5 {[%emt 0:00:46]} 11. dxe5 {[%emt 0:01:20]} dxe5 {[%emt 0:00:57]} 12. Bg5 {[%emt 0:00:06]} h6 {[%emt 0:00:17]} 13. Bh4 {[%emt 0:00:21]} g5 {[%emt 0:00:29]} 14. Bg3 {[%emt 0:00:41]} Qc7 {[%emt 0:00:17]} 15. Nc3 {[%emt 0:00:43]} Rac8 {[%emt 0:00:57]} 16. h3 {[%emt 0:00:27]} Nh5 {[%emt 0:00:22]} 17. Bh2 {[%emt 0:01:08]} f6 {[%emt 0:00:29]} 18. Nd5 {[%emt 0:00:30]} Qd6 {[%emt 0:00:34]} 19. Rad1 {[%emt 0:00:21]} Qe6 {[%emt 0:00:13]} 20. Nxg5 {[%emt 0:03:04]} fxg5 {[%emt 0:00:24]} 21. Qxh5 {[%emt 0:00:03]} Rc2 {[%emt 0:00:11]} 22. Re2 {[%emt 0:00:19]} Rc4 {[%emt 0:00:38]} 23. Qg4 {[%emt 0:01:14]} Qxg4 {[%emt 0:01:06]} 24. hxg4 {[%emt 0:00:02]} Nc5 {[%emt 0:00:06]} 25. f3 {[%emt 0:00:34]} Rf7 {[%emt 0:00:33]} 26. Ne3 {[%emt 0:01:27]} Rb4 {[%emt 0:00:25]} 27. Nf5 {[%emt 0:00:21]} Na4 {[%emt 0:00:34]} 28. Nxg7 {[%emt 0:00:45]} Nxb2 {[%emt 0:01:11]} 29. Rd8+ {[%emt 0:00:15]} Kh7 {[%emt 0:01:38]} 30. Nf5 {[%emt 0:01:45]} Nc4 {[%emt 0:00:22]} 31. Nd6 {[%emt 0:01:18]} Nxd6 {[%emt 0:00:18]} 32. Rxd6 {[%emt 0:00:03]} Rb1+ {[%emt 0:00:06]} 33. Kf2 {[%emt 0:00:03]} b5 {[%emt 0:00:34]} 34. Bxe5 {[%emt 0:00:08]} b4 {[%emt 0:00:58]} 35. Red2 {[%emt 0:00:05]} Rc1 {[%emt 0:00:18]} 36. Rd7 {[%emt 0:00:20]} Rxd7 {[%emt 0:00:37]} 37. Rxd7+ {[%emt 0:00:03]} Kg8 {[%emt 0:00:07]} 38. Rxa7 {[%emt 0:00:02]} Rc2+ {[%emt 0:00:03]} 39. Kg3 {[%emt 0:00:04]} Rc5 {[%emt 0:00:27]} 40. Bd6 {[%emt 0:00:33]} Rc8 {[%emt 0:00:08]} 41. Bxb4 {[%emt 0:00:11]} h5 {[%emt 0:00:06]} 42. gxh5 {[%emt 0:00:22]} Re8 {[%emt 0:00:10]} 43. h6 {[%emt 0:00:27]} Kh8 {[%emt 0:00:37]} 44. Bc3+ {[%emt 0:00:17]} Kg8 {[%emt 0:00:26]} 45. Rg7+ {[%emt 0:00:04]} Kf8 {[%emt 0:00:11]} 46. Bb4+ {[%emt 0:00:04]} Re7 {[%emt 0:00:06]} 47. Bxe7+ {[%emt 0:00:07]} Ke8 {[%emt 0:00:10]} 48. h7 {[%emt 0:00:22]} Kd7 {[%emt 0:00:00]} 49. h8=Q {[%emt 0:00:20]} Kc6 {[%emt 0:00:09]} 50. Qc8+ {[%emt 0:00:10]} Kb5 {[%emt 0:00:09]} 51. Rxg5+ {[%emt 0:00:06]} Ka4 {[%emt 0:00:01]} 52. Qc4# {[%emt 0:00:22]} 1-0

[Event "Slovakia Open 2022"]
[Site "Bratislava"]
[Date "2022.10.01"]
[Round "4.1"]
[White "Leniart, Arkadiusz"]
[Black "Korobov, Anton"]
[Result "0-1"]
[ECO "C09"]
[WhiteElo "2479"]
[BlackElo "2671"]
[Annotator "TA"]
[PlyCount "126"]
[EventDate "2022.09.30"]
[EventCountry "SVK"]
[SourceTitle "playchess.com"]
[Source "ChessBase"]
[SourceQuality "1"]
[TimeControl "2700+10"]

{[%evp 21,126,27,33,30,33,37,38,31,35,34,62,50,64,65,67,57,76,60,63,55,56,47,105,91,105,76,74,73,185,115,108,100,133,58,47,47,41,0,15,7,14,8,4,8,18,0,0,-22,-17,-17,-14,-34,-12,-20,-40,-26,-22,-64,-64,-81,-87,-102,-88,-87,-83,-107,-106,-107,-114,-188,-163,-199,-203,-237,-169,-356,-350,-285,-285,-357,-354,-432,-502,-605,-572,-555,-511,-651,-559,-784,-803,-734,-706,-745,-730,-876,-759,-895,-859,-2480,-2284,-29978,-29979,-29978,-29980,-29980,-29980]} 1. e4 {[%emt 0:00:06]} c5 {[%emt 0:00:01]} 2. c3 {[%emt 0:00:02]} e6 {[%emt 0:00:07]} 3. d4 {[%emt 0:00:02]} d5 {[%emt 0:00:01]} 4. exd5 {[%emt 0:00:02]} exd5 {[%emt 0:00:02]} 5. Nf3 {[%emt 0:00:05]} Nc6 {[%emt 0:00:01]} 6. Bb5 {[%emt 0:00:04]} Bd6 {[%emt 0:00:02]} 7. dxc5 {[%emt 0:00:02]} Bxc5 {[%emt 0:00:02]} 8. O-O {[%emt 0:00:03][%cal Bh1f1,Bf1e1,Be1e3][%mdl 32]} Nge7 {[%emt 0:00:01]} 9. Nbd2 {[%emt 0:00:04]} O-O {[%emt 0:00:04]} 10. Nb3 {[%emt 0:00:02]} Bb6 {[%emt 0:00:03]} 11. Re1 {[%emt 0:00:13]} Bg4 {[%emt 0:00:50]} 12. h3 {[%emt 0:00:02] C09: French Tarrasch: 3...c5 4 exd5 exd5 5 Ngf3 Nc6.} Bh5 {[%emt 0:00:27]} 13. Be3 {[%emt 0:00:02]} Bxe3 {[%emt 0:02:52]} 14. Rxe3 {[%emt 0:00:02] White is slightly better.} Nf5 {[%emt 0:00:02]} 15. Re1 {[%emt 0:00:02] [#]} Bg6 $146 {[%emt 0:00:13]} ({Predecessor:} 15... Nh4 16. Be2 Re8 17. Nxh4 Bxe2 18. Rxe2 Qxh4 19. Rxe8+ Rxe8 20. Qd2 Qc4 21. Re1 Re6 {1-0 (35) Quesada Perez,Y (2452)-Otero Acosta,D (2527) Merida 2013}) 16. Qd2 {[%emt 0:05:19]} a6 {[%emt 0:04:12]} 17. Bd3 {[%emt 0:01:33]} Qd6 {[%emt 0:00:18]} 18. Rad1 {[%emt 0:00:24]} Rad8 {[%emt 0:00:03]} 19. Bxf5 {[%emt 0:02:31]} Bxf5 {[%emt 0:00:02]} 20. c4 {[%emt 0:01:31][%cal Bc3c4,Bc4d5,Bd5d6][%mdl 32]} Qf6 {[%emt 0:02:21]} 21. cxd5 {[%emt 0:02:01]} Be6 {[%emt 0:00:26]} 22. d6 $16 {[%emt 0:02:26] aiming for Nc5.} Bxh3 {[%emt 0:00:10]} 23. Qc3 {[%emt 0:04:29]} (23. Nc5 {seems wilder.} Bg4 24. Re3 b6 25. Nxa6 Rfe8 26. Rxe8+ Rxe8 27. Qd5) 23... Qxc3 {[%emt 0:01:50]} 24. bxc3 {[%emt 0:00:02]} Bc8 {[%emt 0:00:06]} (24... Bg4 $16) 25. c4 {[%emt 0:01:00]} (25. Nc5 $18) 25... f6 {[%emt 0:01:09]} 26. Nc5 {[%emt 0:04:04] Strongly threatening d7.} Rf7 {[%emt 0:02:03] [#] Prevents d7.} 27. Na4 {[%emt 0:11:15]} (27. Rd5 $1 $16) 27... b5 $14 {[%emt 0:00:53]} 28. Nb6 {[%emt 0:00:04]} bxc4 {[%emt 0:00:47]} 29. Nxc4 {[%emt 0:00:10]} (29. Re4 $5 {[%cal Re4c4]}) 29... Bg4 {[%emt 0:01:13]} 30. Rd3 {[%emt 0:00:56]} (30. Nd4 {with more complications.} Ne5 31. Nxe5 fxe5 32. Nc6) 30... Bxf3 {[%emt 0:01:18]} 31. gxf3 {[%emt 0:01:23]} Rb7 {[%emt 0:01:06]} 32. f4 {[%emt 0:00:41]} Kf7 {[%emt 0:00:52]} 33. Rd5 {[%emt 0:01:47]} Rb5 {[%emt 0:02:28]} 34. Red1 {[%emt 0:00:32]} Rxd5 {[%emt 0:00:26]} 35. Rxd5 $11 {[%emt 0:00:04][%mdl 4096] Endgame KRN-KRN} Ke6 {[%emt 0:00:09]} 36. Rc5 {[%emt 0:03:02]} Kd7 {[%emt 0:00:33]} 37. Rh5 {[%emt 0:01:24]} h6 {[%emt 0:01:08]} 38. Rh3 {[%emt 0:00:02]} Nd4 {[%emt 0:01:09]} 39. Ra3 {[%emt 0:00:58]} Kc6 $1 {[%emt 0:00:49]} 40. Kf1 {[%emt 0:01:55] White is now going downhill.} Kc5 {[%emt 0:02:17]} 41. Rc3 {[%emt 0:00:02]} Nb5 {[%emt 0:00:09][%csl LRc3,LRd6]} 42. Rc2 {[%emt 0:00:38][%cal Od6d7]} Nxd6 {[%emt 0:00:13]} 43. Ne5+ {[%emt 0:00:31]} Kd5 {[%emt 0:00:43]} 44. Nc6 {[%emt 0:00:10]} Ra8 {[%emt 0:00:02]} 45. Nb4+ {[%emt 0:00:14]} (45. Kg2 $17 {was worth a try.}) 45... Ke4 $19 {[%emt 0:00:20]} 46. Rc6 {[%emt 0:00:05]} a5 {[%emt 0:00:17]} 47. Na6 {[%emt 0:00:17]} Nf5 {[%emt 0:00:49] Threatens to win with ...Nd4.} 48. Rc4+ {[%emt 0:00:15]} (48. Nc7 Rb8 49. Kg2) 48... Kf3 {[%emt 0:00:36]} 49. Nc5 {[%emt 0:00:15]} Rc8 {[%emt 0:00:51]} 50. Rc3+ {[%emt 0:00:03]} Kg4 {[%emt 0:00:02]} 51. Ke2 {[%emt 0:00:26]} h5 {[%emt 0:00:26][%cal Bh6h5,Bh5h4,Bh4h3][%mdl 32]} 52. f3+ {[%emt 0:00:09]} Kh3 {[%emt 0:00:25] Hoping for ...Kg2.} 53. Kf2 {[%emt 0:00:05]} Ng3 {[%emt 0:00:20]} 54. f5 {[%emt 0:00:18]} h4 {[%emt 0:00:17]} 55. a4 {[%emt 0:00:10]} Kh2 {[%emt 0:01:02]} 56. Rc1 {[%emt 0:00:10]} h3 {[%emt 0:00:31]} 57. Rc2 {[%emt 0:00:08]} Rc7 {[%emt 0:00:38]} 58. Rc1 {[%emt 0:00:10]} Nxf5 {[%emt 0:00:24]} 59. f4 {[%emt 0:00:02]} Nd4 {[%emt 0:00:41] [#] ...Ne6 is the strong threat.} 60. Ke3 {[%emt 0:00:06]} Nb3 {[%emt 0:00:17]} 61. Rc2+ {[%emt 0:00:26]} Kg1 {[%emt 0:00:13] Black mates.} 62. Rb2 {[%emt 0:00:01]} Rxc5 {[%emt 0:00:23]} 63. Rxb3 {[%emt 0:00:03]} h2 {[%emt 0:00:08] Weighted Error Value: White=0.52/Black=0.10 (very precise)} 0-1

[Event "Slovakia Open 2022"]
[Site "Bratislava"]
[Date "2022.10.01"]
[Round "4.2"]
[White "Stocek, Jiri"]
[Black "Klabis, Rokas"]
[Result "1-0"]
[ECO "D06"]
[WhiteElo "2559"]
[BlackElo "2396"]
[Annotator "TA"]
[PlyCount "45"]
[EventDate "2022.09.30"]
[EventCountry "SVK"]
[SourceTitle "playchess.com"]
[Source "ChessBase"]
[SourceQuality "1"]
[TimeControl "2700+10"]

{[%evp 9,45,34,40,32,24,32,42,42,115,113,127,125,121,120,118,111,180,172,543,555,541,533,518,498,660,654,616,445,417,7,753,755,722,663,5310,5306,1957,1896]} 1. Nf3 {[%emt 0:00:16]} Nf6 {[%emt 0:00:10]} 2. c4 {[%emt 0:00:03]} d5 {[%emt 0:00:11]} 3. cxd5 {[%emt 0:00:06]} Nxd5 {[%emt 0:00:35]} 4. e4 {[%emt 0:00:43]} Nb6 {[%emt 0:00:12]} 5. d4 {[%emt 0:00:13]} Bg4 {[%emt 0:02:34]} 6. Be3 {[%emt 0:02:01] D06: Queen's Gambit: Symmetrical and Baltic Defences.} e5 {[%emt 0:02:46]} 7. d5 {[%emt 0:01:24]} c6 {[%emt 0:02:22][%cal Rc6d5] [#]} 8. Nc3 $146 {[%emt 0:00:06] White is slightly better.} ({Predecessor:} 8. dxc6 Qxd1+ 9. Kxd1 Nxc6 10. Be2 Bb4 11. Nbd2 O-O-O 12. Kc2 Bxf3 13. Nxf3 Nd4+ 14. Bxd4 exd4 {½-½ (22) Boba,D (1488)-Rakovsky,J (1035) Liptovsky Mikulas 2017}) 8... cxd5 {[%emt 0:04:22]} (8... Bd6 $14) 9. Bb5+ $16 {[%emt 0:02:04]} (9. exd5 Bb4 $14) (9. Nxd5 $6 Nxd5 10. Bb5+ (10. exd5 Bb4+ 11. Ke2 O-O $15) 10... Bd7 11. Bxd7+ Qxd7 $11) 9... N8d7 {[%emt 0:03:32] aiming for ...d4.} 10. Bxb6 {[%emt 0:05:44] White has more active pieces.} (10. exd5 $6 Bb4 $11) (10. Nxd5 $6 Nxd5 11. Qxd5 Bb4+ 12. Ke2 (12. Bd2 Bxd2+ 13. Qxd2 Bxf3 $11) 12... O-O $14) 10... Qxb6 {[%emt 0:00:12]} 11. Bxd7+ {[%emt 0:06:06]} (11. exd5 $6 Rd8 $11) (11. Qxd5 $6 f6 $11) 11... Bxd7 {[%emt 0:00:07]} 12. Nxe5 {[%emt 0:00:05]} Qxb2 {[%emt 0:11:20] [#]} (12... Qc7 $16) 13. O-O $1 $40 {[%emt 0:01:53][%mdl 128] Black is in trouble.} Qxc3 {[%emt 0:05:03]} (13... Bd6 {is more resistant.} 14. Qxd5 Be6 15. Qxd6 Rd8) 14. Qxd5 {[%emt 0:01:11][%csl Ge5][%cal Rd5d7]} Be6 {[%emt 0:03:24]} 15. Qb5+ {[%emt 0:00:17]} Ke7 {[%emt 0:00:02] Threatens to win with ...Rc8.} 16. Rac1 {[%emt 0:04:09]} Qd4 {[%emt 0:05:51] And now ...Qb6 would win.} 17. Rc7+ {[%emt 0:06:13][%mdl 64] [#] Skewer, Double Attack} (17. Rfd1 Qb6 18. Qa4 Rd8 19. Qa3+ Kf6 20. Qf3+ (20. Qg3 $2 Rxd1+ 21. Rxd1 Bc5 $19) 20... Ke7 21. Qa3+ Kf6 22. Qf3+ (22. Qg3 $2 Rxd1+ 23. Rxd1 Bc5 $19) 22... Kxe5 $17) 17... Kd8 {[%emt 0:02:56]} 18. Rxb7 {[%emt 0:02:05] Nc6+ would kill now.} Rc8 {[%emt 0:01:00]} 19. Rb8 {[%emt 0:03:02] Dancing on a razor blade.} ({Weaker is} 19. Nc6+ Rxc6 20. Qxc6 Bd6 $18) 19... Bd7 {[%emt 0:01:27][%mdl 8192]} (19... Ke7 $11 20. Rxc8 (20. Nc6+ Rxc6 21. Qxc6 Kf6 $11) 20... Qxe4 21. Re8+ Kf6 22. Nd7+ Kg6 23. Nxf8+ Rxf8 24. Rxf8 h6) 20. Rxc8+ {[%emt 0:02:45] White is clearly winning.} ({Not} 20. Nxd7 Qxd7 21. Rxc8+ Qxc8 $16) 20... Kxc8 {[%emt 0:00:11]} 21. Nxd7 {[%emt 0:00:15]} Bd6 {[%emt 0:00:00]} 22. Rc1+ {[%emt 0:01:46]} Kd8 {[%emt 0:00:00]} 23. Qb7 {[%emt 0:00:15] Black got outplayed after the opening.  Weighted Error Value: White=0.21 (precise) /Black=0.57} 1-0